{"text_format":"1","workbook":"xlsx","n_sheets":6,"sheets":["INSTRUCCIONES","DATOS","EVALUACION","INFO CENTRO","PLAN DE MEDIDAS","BASE_EVAL"],"not_rendered":{"charts":0,"images":1,"macros":1,"external_links":0,"defined_names":5,"comments":0,"pivot_tables":0},"unopened":[],"bounds":{"document_bytes":16777216,"sheet_cells":100000,"rows_first":2000,"rows_last":500,"rows_between":2000,"halvings":0,"cell_chars":16384,"cell_head_chars":4096},"cells_cut":0,"cells_raw":0,"read":"whole","date_system":"1900"}

{"sheet":"INSTRUCCIONES","index":0,"n_rows":35,"n_cols":18,"rows_kept":35,"cut":false,"hidden":false,"merged":[[34,1,35,17],[0,1,4,17],[19,1,19,10],[9,1,17,17],[21,1,22,17],[24,1,25,17],[27,1,29,17],[31,1,32,17]]}
[null,"    INSTRUCTIVO DE USO"]
[]
[]
[]
[]
[]
[]
[]
[null,null,null,null,null,null,null,null,null,null,null,null,null,null,null,null,null,"Fecha de actualización del documento: 10 de mayo de 2021"]
[null,"SOBRE LA LISTA DE VERIFICACIÓN:\n\nLa siguiente lista de verificación de medidas preventivas ha sido construida a partir de lo establecido en:\n\n(a) Actualización de la Estrategia Gradual “Paso a Paso nos Cuidamos”, año 2021.\n(b) Resolución Exenta N°43 de 15 de enero de 2021 del Ministerio de Salud: Dispone medidas sanitarias que indica por brote de COVID-19 y establece nuevo plan “Paso a Paso”.\n(c) Protocolo Nacional “Modo COVID de Vida”. Medidas básicas para la población general y el funcionamiento de actividades.\n(d) Protocolo de Limpieza y Desinfección de Ambientes COVID-19.\n(e) Protocolo para la prevención y manejo del COVID-19 en centros residenciales para personas mayores. Versión 2 del 07 de octubre de 2020. MINSAL, SENAMA, SOC. DE GERIATRÍA Y GERONTOLOGÍA DE CHILE."]
[]
[]
[]
[]
[]
[]
[]
[]
[]
[null,"Pasos a seguir"]
[]
[null,"1. Se debe individualizar el centro de trabajo en que se aplicará esta lista de verificación. Acceder por medio del botón \"DATOS DEL CENTRO\", ubicado en la parte superior de esta hoja.\n"]
[]
[]
[null,"2. Efectuado el registro del centro, se debe continuar a la hoja siguiente, donde debe seleccionar las actividades que se realizan en su centro de trabajo. Acceder por medio del botón \"ACTIVIDADES DEL CENTRO\""]
[]
[]
[null,"3. Seleccionadas las actividades, se debe acceder a las preguntas de evaluación por medio del botón \"LISTA DE EVALUACIÓN\". Se deben responder las preguntas de cada apartado, seleccionando \"SI\" cuando se ha implementado la totalidad de la medida evaluada, caso contrario se selecciona \"NO\". Si la pregunta de evaluación no se ajusta a la realizada del centro de trabajo, se selecciona \"NO APLICA\""]
[]
[]
[]
[null,"4. Respondida la totalidad del cuestionario, se debe generar el \"PLAN DE MEDIDAS\" que se deben implementar, las cuales deben ser planificadas con la fecha máxima  y el responsable de gestionar su implementación."]
[]
[]
[null,"5. El plan de medida se apertura en un libro Excel independiente a esta planilla, el cual se debe guardar en su equipo. En este último se deben programar las fechas de implementación y asignar los respectivos responsables de cada medida."]

{"sheet":"DATOS","index":1,"n_rows":31,"n_cols":15,"rows_kept":31,"cut":false,"hidden":false,"merged":[[20,14,20,15],[20,16,20,17],[22,16,22,17],[28,16,28,17],[30,11,30,12],[28,14,28,15],[30,14,30,15],[22,14,22,15],[22,11,22,12],[30,16,30,17],[20,8,20,12],[28,11,28,12],[14,3,14,7],[28,3,28,7],[22,3,22,7],[22,9,22,10],[28,9,28,10],[2,1,5,18],[0,1,1,18],[30,9,30,10],[14,14,14,15],[14,11,14,12],[14,16,14,17],[11,1,11,10],[14,1,14,2],[28,1,28,2],[17,1,17,10],[20,1,20,2],[22,1,22,2],[25,1,25,10],[20,3,20,4],[20,6,20,7],[14,9,14,10]]}
[null,"LISTA DE VERIFICACIÓN - SERIE COVID-19"]
[]
[null,"MEDIDAS PREVENTIVAS FRENTE AL COVID-19\nESTABLECIMIENTOS DE LARGA ESTADÍA PARA ADULTOS MAYORES (ELEAM)"]
[]
[]
[]
[]
[]
[]
[null,"INFORMACIÓN DEL CENTRO DE TRABAJO EVALUADO"]
[]
[null,"Entidad empleadora"]
[]
[]
[null,"RAZÓN SOCIAL",null,null,null,null,null,null,null,"RUT",null,null,null,null,"CIIU PRINCIPAL"]
[]
[]
[null,"Dirección del centro"]
[]
[]
[null,"TIPO",null,null,null,null,"DIRECCIÓN",null,null,null,null,null,null,null,"NÚMERO"]
[]
[null,"LOCALIDAD",null,null,null,null,null,null,null,"COMUNA",null,null,null,null,"REGIÓN"]
[]
[]
[null,"Responsable de aplicación"]
[]
[]
[null,"NOMBRE COMPLETO",null,null,null,null,null,null,null,"RUT",null,null,null,null,"CARGO"]
[]
[null,null,null,null,null,null,null,null,null,"TELÉFONO",null,null,null,null,"MAIL"]

{"sheet":"EVALUACION","index":2,"n_rows":74,"n_cols":5,"rows_kept":74,"cut":false,"hidden":false,"merged":[[0,1,1,7],[2,1,5,7]]}
[null,"LISTA DE VERIFICACIÓN - SERIE COVID-19"]
[]
[null,"MEDIDAS PREVENTIVAS FRENTE AL COVID-19\nESTABLECIMIENTOS DE LARGA ESTADÍA PARA ADULTOS MAYORES (ELEAM)"]
[]
[]
[]
[]
[]
[]
[]
[null,"N°","TIPO","PREGUNTA DE EVALUACIÓN (MEDIDA SEÑALADA POR LA AUTORIDAD)","EVALUACIÓN"]
[]
[null,"1.- MEDIDAS DE GESTIÓN Y ORGANIZACIÓN QUE DEBEN SER ADOPATADAS POR LA DIRECCIÓN TÉCNICA"]
[]
[null,"1.1","Obligatorio","¿Se ha designado a un profesional responsable de coordinar la planificación de medidas de prevención para COVID-19?"]
[null,"1.2","Obligatorio","¿Se cuenta con un plan de de contingencias acorde a las especificaciones establecidas en la Guía práctica de manejo COVID-19 en Establecimientos de Larga Estadía para Adultos Mayores (ELEAM), abril 2020?"]
[null,"1.3","Obligatorio","¿Se cumple con establecer la máxima coordinación con los establecimientos de salud locales, a efectos de asegurar la atención de los residentes por parte del equipo de salud, según corresponda?"]
[null,"1.4","Obligatorio","¿Se cumple con mantener el número de contacto de los miembros del equipo de salud locales?"]
[null,"1.5","Obligatorio","¿Se cumple con coordinar con los servicios de atención primaria para promover que la vacunación contra la influenza se realice dentro del establecimiento?."]
[null,"1.6","Obligatorio","¿Se ha definido una persona responsable de comunicación con el personal, residentes y familiares, respecto al estatus e impacto del COVID-19 en el establecimiento?"]
[null,"1.7","Obligatorio","¿Se cumple con informar con señalética y otros métodos de comunicación al personal, miembros de la familia,visitantes y otras personas que ingresan a las instalaciones, sobre el estado de COVID-19 en el establecimiento y políticas de prevención?."]
[null,"1.8","Obligatorio","¿Se cumple con revisar constantemente los suministros de la residencia?"]
[null,"1.9","Obligatorio","¿Se cumple con asegurar un buen stock de los medicamentos que requieran las personas mayores y prever que no se quiebre ese stock durante al menos 30 días?."]
[null,"1.10","Obligatorio","¿Se cumplen las condiciones sanitarias  para  programar el ingreso de nuevos residentes al ELEAM?"]
[null,"1.11","Obligatorio","¿Se ha identificado el personal mínimo necesario y priorizado la entrega de servicios críticos?"]
[null,"1.12","Obligatorio","¿Se cumple con planificar rotaciones e identificar personal para eventual reemplazo de funcionarios frente a casos sospechosos y confirmados de COVID-19 con indicación de aislamiento domiciliario?"]
[null,"1.13","Obligatorio","¿Se ha identificado posibles lugares de aislamiento en casos de que haya sospecha de COVID-19 en residentes?"]
[null,"1.14","Recomendación","¿Se ha considerado la reorganización de turnos incorporando mayor flexibilidad de horarios, horarios diferidos, por ejemplo, para evitar aglomeraciones en el transporte público, al igual que dar la posibilidad de cambios en los sistemas de turnos, con el objetivo de disminuir el riesgo de contagio al estar expuestos al transporte público, como también para proteger la salud mental de los trabajadores?"]
[null,"1.15","Obligatorio","¿La residencia cuenta con protocolo que establezca las medidas de control respecto de las visitas?"]
[null,"1.16","Obligatorio","¿Se cuenta con protocolo que establezca las medidas frente a la solicitud de egreso de residentes de ELEAM?"]
[null,"1.17","Obligatorio","¿Se cuenta con protocolo que establezca las medidas para las salidas de los residentes a realizar caminatas fuera del ELEAM?"]
[null,"2.- MEDIDAS DE SEGURIDAD DE LA RESIDENCIA"]
[]
[null,"2.1","Obligatorio","¿Se cumple con evitar el contacto físico entre personas: no saludar con besos, abrazos o darse la mano, como cualquier otro tipo de contacto físico?. "]
[null,"2.2","Obligatorio","¿Se cumple con mantener distancia de a lo menos 1 metro, en la medida de lo posible?."]
[null,"2.3","Obligatorio","¿Se cumple con evitar lugares cerrados y sin ventilación?"]
[null,"2.4","Obligatorio","¿Se delimitan los objetos, utensilios e insumos, que deberán ser de uso exclusivo y personal de forma estricta?."]
[null,"2.5","Obligatorio","¿Se divide el uso de baño para cada grupo?"]
[null,"2.6","Obligatorio","¿Se cumple con desinfectar permanentemente las superficies y baños de población general de la residencia, realizar estas acciones según las orientaciones emanadas del “Protocolo de Limpieza y desinfección de Ambientes, COVID-19” vigente MINSAL?"]
[null,"2.7","Obligatorio","¿Se cumple con implementar un plan de actividades para gantizar la salud y control de enfermedades crónicas o de base de los residentes?."]
[null,"2.8","Obligatorio","¿Se cumple con promover el contacto por vías seguras no presenciales, como teléfono y redes sociales, para evitar la carga emocional del aislamiento?"]
[null,"3. MEDIDAS DE CONTROL DE LOS TRABAJADORES DE LA RESIDENCIA"]
[]
[null,"3.1","Obligatorio","¿Se cumple con firmar la correspondiente Declaración Jurada para funcionarios de Establecimientos de Larga Estadía para Adultos Mayores (ELEAM) del Ministerio de Salud?"]
[null,"3.2","Obligatorio","¿Se cumple con realizar control de su temperatura al ingreso del turno? "]
[null,"3.3","Obligatorio","¿Se cumple con realizar lavado de manos obligatorio al ingreso y con la frecuencia recomendada, cumpliendo con la disposición del Protocolo “Estándares para el control de infecciones en la atención en salud y algunas consideraciones de aislamiento”?"]
[null,"3.4","Obligatorio","¿Se cumple con disponer de un espacio para el cambio de uniforme al interior de la residencia?"]
[null,"3.5","Obligatorio","¿Se cumple que todo personal que ingrese a la residencia deberá cambiar su ropa y zapatos, los que dejará en una bolsa cerrada, para luego poner su uniforme de trabajo?"]
[null,"3.6","Obligatorio","¿Se cumple que la instrucción: La ropa utilizada durante el cuidado de las personas mayores residentes es de uso exclusivo para el lugar donde se realiza el cuidado, quedando prohibido circular en espacios públicos con ella?"]
[null,"3.7","Obligatorio","¿Se cumple instrucción: No portar anillos o pulseras mientras está en jornada de trabajo. Deben ser retirados antes de comenzar la jornada laboral?"]
[null,"4.- MEDIDAS ANTE LA PRESENCIA DE COVID-19 EN LA RESIDENCIA"]
[]
[null,"4.1- Casos sugerentes de COVID-19 en personas mayores"]
[null,"4.1.1","Obligatorio","¿La residencia cuenta con protocolos de actuación ante la presentacia de casos sugerentes de COVID-19 en personas mayores?"]
[null,"4.2- Condiciones del personal para el traslado de la persona mayor con sospecha de COV-19"]
[null,"4.2.1","Obligatorio","¿La residencia cuenta con protocolos de actuación ante la necesidad de efectuar traslado de personas mayores con sospecha de COVID-19?"]
[null,"4.3- Medidas para levantamiento de aislamiento de residente conocido que es caso sospechoso COVID-19"]
[null,"4.3.1","Obligatorio","¿La residencia cuenta con protocolos de actuación para levantamiento de aislamiento de residente conocido que es caso sospechoso COVID-19?"]
[null,"4.4- Medidas en caso que se confirme COVID-19 en la residencia"]
[null,"4.4.1","Obligatorio","¿La residencia cuenta con protocolos de actuación ante casos confirmados de COVID-19 de personas mayores en la residencia?"]
[null,"4.5- Medidas en caso que se confirme COVID-19 y la persona requiera hospitalización"]
[null,"4.5.1","Obligatorio","¿La residencia cuenta con protocolos de actuación ante casos confirmados de COVID-19 y la persona requiera de hospitalización?"]
[null,"4.6- Medidas en la residencia en caso de fallecimiento por COVID-19"]
[null,"4.6.1","Obligatorio","¿La residencia cuenta con protocolos de actuación ante fallecimientos por COVID-19?"]
[null,"4.7- Medidas de control de ingreso de terceras personas al ELEAM (abastecimiento. médicos. etc)"]
[null,"4.7.1","Obligatorio","¿La residencia cuenta con protocolos de ingreso de terceras personas al ELEAM (abastecimiento, médicos, etc)?"]
[null,"4.8- Protocolo de visita de familiares a residentes en contexto de fin de vida"]
[null,"4.8.1","Obligatorio","¿La residencia cuenta con protocolos de \"Reencuentro Seguro\" para visita de familiares a residentes en contexto de fin de vida?"]
[null,"5. ELEMENTOS DE PROTECCIÓN PERSONAL (EPP)"]
[]
[null,"5.1","Obligatorio","¿Se encuentra SEÑALIZADO según corresponda el uso de protección respiratoria, guantes, mascara facial u otros elementos de protección personal según las tareas realizadas por los trabajadores?"]
[null,"5.2","Obligatorio","¿Se cumple con PROPORCIONAR MASCARILLA que cubran su nariz y boca, a todos los trabajadores, exigiendo su uso en las condiciones o lugares que corresponda?"]
[null,"5.3","Obligatorio","En el caso de que el centro de trabajo cuente con ascensores ¿Se cumple con la OBLIGACIÓN de uso de mascarilla durante el uso?."]
[null,"5.4","Obligación","¿La residencia cumple proporcionar los siguintes elementos de protección para atención de residentes sospechosos o confirmados de COVID-19?"]

{"sheet":"INFO CENTRO","index":3,"n_rows":26,"n_cols":16,"rows_kept":26,"cut":false,"hidden":false,"merged":[[23,2,23,4],[23,6,23,8],[25,2,25,4],[25,6,25,8],[21,3,21,8],[21,1,21,2],[14,15,14,17],[16,15,16,17],[0,1,1,18],[2,1,5,18],[12,1,12,2],[14,1,14,2],[16,1,16,2],[12,12,12,17],[14,3,14,8],[16,3,16,8],[14,11,14,13],[12,10,12,11],[12,3,12,8],[16,11,16,13]]}
[null,"LISTA DE VERIFICACIÓN - SERIE COVID-19"]
[]
[null,"MEDIDAS PREVENTIVAS FRENTE AL COVID-19\nESTABLECIMIENTOS DE LARGA ESTADÍA PARA ADULTOS MAYORES (ELEAM)"]
[]
[]
[]
[]
[null,"INFORMACIÓN DEL CENTRO DE TRABAJO EVALUADO"]
[]
[null,"Entidad empleadora",null,null,null,null,null,null,null,null,"Dirección del centro"]
[]
[]
[null,"RAZÓN SOCIAL",null,{"$f":"+IF(DATOS!D15=\"\",\"SIN INFORMACIÓN\",DATOS!D15)","v":"SIN INFORMACIÓN"},null,null,null,null,null,null,"DIRECCIÓN",null,{"$f":"+IF(DATOS!I21=\"\",\"SIN INFORMACIÓN\",DATOS!I21)","v":"SIN INFORMACIÓN"}]
[]
[null,"RUT",null,{"$f":"+IF(DATOS!L15=\"\",\"SIN INFORMACIÓN\",DATOS!L15)","v":"SIN INFORMACIÓN"},null,null,null,null,null,null,"NÚMERO",{"$f":"+IF(DATOS!Q21=\"\",\"SIN INFORMACIÓN\",DATOS!Q21)","v":"SIN INFORMACIÓN"},null,null,"LOCALIDAD",{"$f":"+IF(DATOS!D23=\"\",\"SIN INFORMACIÓN\",DATOS!D23)","v":"SIN INFORMACIÓN"}]
[]
[null,"CIIU PRINCIPAL",null,{"$f":"+IF(DATOS!Q15=\"\",\"SIN INFORMACIÓN\",DATOS!Q15)","v":"SIN INFORMACIÓN"},null,null,null,null,null,null,"COMUNA",{"$f":"+IF(DATOS!L23=\"\",\"SIN INFORMACIÓN\",DATOS!L23)","v":"SIN INFORMACIÓN"},null,null,"REGIÓN",{"$f":"+IF(DATOS!Q23=\"\",\"SIN INFORMACIÓN\",DATOS!Q23)","v":"SIN INFORMACIÓN"}]
[]
[null,"Responsable de aplicación"]
[]
[]
[null,"NOMBRE COMPLETO",null,{"$f":"+IF(DATOS!D29=\"\",\"SIN INFORMACIÓN\",DATOS!D29)","v":"SIN INFORMACIÓN"}]
[]
[null,"RUT",{"$f":"+IF(DATOS!L29=\"\",\"SIN INFORMACIÓN\",DATOS!L29)","v":"SIN INFORMACIÓN"},null,null,"CARGO",{"$f":"+IF(DATOS!Q29=\"\",\"SIN INFORMACIÓN\",DATOS!Q29)","v":"SIN INFORMACIÓN"}]
[]
[null,"TELÉFONO",{"$f":"+IF(DATOS!L31=\"\",\"SIN INFORMACIÓN\",DATOS!L31)","v":"SIN INFORMACIÓN"},null,null,"MAIL",{"$f":"+IF(DATOS!Q31=\"\",\"SIN INFORMACIÓN\",DATOS!Q31)","v":"SIN INFORMACIÓN"}]

{"sheet":"PLAN DE MEDIDAS","index":4,"n_rows":75,"n_cols":8,"rows_kept":75,"cut":false,"hidden":false,"merged":[[2,1,5,6],[0,1,1,6],[7,1,8,6],[6,1,6,6]]}
[null,"LISTA DE VERIFICACIÓN - SERIE COVID-19"]
[]
[null,"PLAN DE MEDIDAS PREVENTIVAS FRENTE AL COVID-19\nESTABLECIMIENTOS DE LARGA ESTADÍA PARA ADULTOS MAYORES (ELEAM)"]
[]
[]
[]
[]
[null,"SOBRE EL PLAN DE MEDIDAS:\nPara las siguientes actividades se debe establecer RESPONSABLE y FECHA DE IMPLEMENTACIÓN, generando los registros de evidencias solicitados. Considerar que los puntos que establece este plan de acción puedes ser fiscalizado por la autoridad.\n"]
[]
[]
[null,"N°","TIPO","MEDIDA DE CONTROL","EVIDENCIA DE CUMPLIMIENTO","RESPONSABLE","FECHA IMPLEMENTACIÓN","EVALUACIÓN"]
[]
[null,"1.- MEDIDAS DE GESTIÓN Y ORGANIZACIÓN QUE DEBEN SER ADOPATADAS POR LA DIRECCIÓN TÉCNICA"]
[]
[null,"1.1","Obligatorio","El Director Técnico del recinto deberá designar a un profesional responsable de coordinar la planificación de medidas de prevención para COVID-19, informando al equipo de la residencia la designación de esa persona.","a) Comunicado oficial de la Dirección Técnica con la designación del profesional responsable",null,null,{"$f":"+VLOOKUP(B15,EVALUACION!$B$15:$E$1000,4,FALSE)","v":0}]
[null,"1.2","Obligatorio","Se deberá contar con un plan de de contingencias acorde a las especificaciones establecidas en la Guía práctica de manejo COVID-19 en Establecimientos de Larga Estadía para Adultos Mayores (ELEAM), abril 2020. La fiscalización de lo antes señalado estará a cargo del Ministerio de Desarrollo Social y Familia en coordinación permanente con los profesionales del Ministerio de Salud.\nLa guía práctica de manejo de COVID-19 en ELEAM, exige el abordaje de 10 elementos, cada uno con sus respectivas medidas obligatorias. Los elementos que deben ser gestionados son: 1. COMUNICACIÓN Y COORDINACIÓN DEL PLAN DE CONTINGENCIAS 2. REVISIÓN DE INFRAESTRUCURA\n3. ANTECEDENTES DE LOS RESIDENTES\n4. DISPONIBILIDAD DE ELEMENTOS DE PROTECCIÓN PERSONAL\n5. RECURSOS HUMANOS\n6. PROTOCOLO DE LIMPIEZA Y DESINFECCIÓN\n7. INGRESO Y EGRESO DEL PERSONAL\n8. AISLACIÓN\n9. MANEJO DE CASOS SOSPECHOSOS O CONFIRMADOS COVID-19\n10. MANEJO DE OTRAS SITUACIONES ESPECÍFICAS","a) Plan de contingencias acorde a las especificaciones de la Guía práctica de manejo COVID-19 en Establecimientos de Larga Estadía para Adultos Mayores (ELEAM), abril 2020",null,null,{"$f":"+VLOOKUP(B16,EVALUACION!$B$15:$E$1000,4,FALSE)","v":0}]
[null,"1.3","Obligatorio","Conforme guía de SENAMA y MINSAL, se establece que se debe contactar al encargado local de ELEAMs en SEREMI de Salud y en CESFAM correspondiente para informar el plan de contingencia (oportunidad para comunicar aspectos débiles o ausentes) y acordar sistema de comunicación en casos de COVID-19. En particular, se deberá identificar el servicio con el cual coordinarse o al que se debe concurrir en caso de requerir atención de urgencia. Se recomienda definir previamente los mecanismos de traslado.\nEn caso de tener conexión a internet envíe informe por escrito de su plan de contingencia y acuerdos de comunicación de su red (nombre encargados y números de contacto).\nFono: 800 400 035 (Orientación sobre Programas de SENAMA y contención emocional).\nFono: 600 360 77 77 (Salud Responde – MINSAL).","a) Plan de contingencias acorde a las especificaciones de la Guía práctica de manejo COVID-19 en Establecimientos de Larga Estadía para Adultos Mayores (ELEAM), abril 2020.\nb) Plan y registro de comunicaciones",null,null,{"$f":"+VLOOKUP(B17,EVALUACION!$B$15:$E$1000,4,FALSE)","v":0}]
[null,"1.4","Obligatorio","Se deberá mantener el número de contacto de los miembros del equipo de salud locales, en un lugar visible indicando el nombre y teléfono de los referentes de salud del territorio. En particular, se deberá identificar el servicio con el cual coordinarse o al que se debe concurrir en caso de requerir atención de urgencia. Se recomienda definir previamente los mecanismos de traslado. Por otra parte la Guía de SENAMA y MINSAL,, establece que se debe contactar al encargado de adulto mayor o en su defecto con la dirección del establecimiento centro de salud familiar (CESFAM) para:\n- Informar que está trabajando en plan de contingencia.\n- Coordinar que la vacunación contra la influenza y neumococica se realice dentro del establecimiento.\n- Definir en conjunto protocolo local para atención domiciliaria.\n- Coordinar con el establecimiento al que se debe concurrir en caso de requerir atención de urgencia. Se recomienda definir previamente los mecanismos de traslado.","a) Plan de contingencias acorde a las especificaciones de la Guía práctica de manejo COVID-19 en Establecimientos de Larga Estadía para Adultos Mayores (ELEAM), abril 2020.\nb) Plan y registro de comunicaciones\nc) Listado de nombre y números de contacto de equipos de salud locales",null,null,{"$f":"+VLOOKUP(B18,EVALUACION!$B$15:$E$1000,4,FALSE)","v":0}]
[null,"1.5","Obligatorio","Se debe coordinar con servicios de atención primaria para promover que la vacunación contra la influenza se realice dentro del establecimiento.\nConforme guía de SENAMA y MINSAL, es importante que se cumpla con el plan de vacunación contra la influenza implementado por el Ministerio de Salud, tanto para los trabajadores como para los residentes, así como también, mantener el registro correspondiente de dicha vacunación.","a) Plan de vacacunación del establecimiento\nb) Registros de vacunación de todo el personal y adultos mayores",null,null,{"$f":"+VLOOKUP(B19,EVALUACION!$B$15:$E$1000,4,FALSE)","v":0}]
[null,"1.6","Obligatorio","Se debe definir una persona responsable de comunicación con el personal, residentes y familiares, respecto al estatus e impacto del COVID-19 en el establecimiento.","a) Comunicado con el nombre y cargo del responsable a cargo de las comunicaciones.",null,null,{"$f":"+VLOOKUP(B20,EVALUACION!$B$15:$E$1000,4,FALSE)","v":0}]
[null,"1.7","Obligatorio","Se debe informar con señalética y otros métodos de comunicación al personal, miembros de la familia,visitantes y otras personas que ingresan a las instalaciones, sobre el estado de COVID-19 en el establecimiento y políticas de prevención.","a) Plan de comunicaciones y registro de comunicaciones efectuadas.",null,null,{"$f":"+VLOOKUP(B21,EVALUACION!$B$15:$E$1000,4,FALSE)","v":0}]
[null,"1.8","Obligatorio","Se debe revisar constantemente los suministros de la residencia (alimentos, útiles de limpieza y desinfección,  insumos médicos, medicamentos, pañales, elementos de protección personal, entre otros) y generar un plan de contingencia en caso de escasez.","a) Identificación (nombre y cargo) del responsable de revisar permanentemente el stock de los suministros de la residencia (alimentos, útiles de aseo, insumos médicos, pañales, entre otros).\nB) Registros diarios de control de stock\nc) Plan de contingencias en caso de escasez.",null,null,{"$f":"+VLOOKUP(B22,EVALUACION!$B$15:$E$1000,4,FALSE)","v":0}]
[null,"1.9","Obligatorio","Se debe asegurar un buen stock de los medicamentos que requieran las personas mayores, identificando a aquellos residentes que hagan uso de medicamentos habitualmente y prever que no se quiebre ese stock durante al menos 30 días.","a) Identificación (nombre y cargo) del responsable de revisar permanentemente el stock de los medicamentos que requieran las personas mayores, identificando a aquellos residentes que hagan uso de medicamentos habitualmente y prever que no se quiebre ese stock durante al menos 30 días.\nb) Registros diarios de control de stock",null,null,{"$f":"+VLOOKUP(B23,EVALUACION!$B$15:$E$1000,4,FALSE)","v":0}]
[null,"1.10","Obligatorio","Solo podrán ingresar nuevos residentes a un ELEAM bajo las siguientes condiciones:\na) No existan personas (residentes o personal) confirmadas de COVID-19 en la residencia.\nb) Cada nuevo residente al ingresar deberá presentar al director técnico del establecimiento o quien este designe, un documento que acredite que se realizó una prueba PCR para SARS-CoV-2 durante los últimos 14 días con resultado negativo, o positivo habiendo cumplido cuarentena y sin presentar sintomatología aguda.\nc) El residente que ingresa al ELEAM con resultado de la prueba PCR para SARS-CoV-2 negativo, deberá ser aislado por un tiempo de al menos 14 días, posterior a lo cual se levantará este aislamiento sólo si el nuevo residente no presenta síntomas descritos para COVID-19 según definición ministerial vigente.\nd) Para el aislamiento de los residentes nuevos definidos en el punto c) se deberá disponer de dependencias separadas, con personal de atención exclusivo, utilizando los Elementos de Protección Personal (EPP) indicados por Ministerio de Salud y SENAMA. Estos deberán contar con al menos un servicio higiénico de uso exclusivo, el cual deberá mantenerse higienizado de acuerdo a Protocolo de Limpieza y Desinfección de Ambientes COVID-19 del Ministerio de Salud6, vigente.\ne) En aquellos establecimientos que cuenten con tan solo un servicio higiénico, este podrá ser empleado por los residentes en aislamiento siempre y cuando posterior a cada uso sea higienizado de acuerdo con lo indicado en el “Protocolo de Limpieza y Desinfección de Ambientes COVID-19” del Ministerio de Salud.\nf) Respecto a los reingresos derivados de residencias sanitarias, residencias espejo se reconocerán los días de cuarentena ya realizados.\nEn caso del reingreso proveniente de hospitales o de hospitalización domiciliaria se deberán completar los días de cuarentena faltantes en el ELEAM, de acuerdo a norma vigente.","a) Registro de ingreso de residentes",null,null,{"$f":"+VLOOKUP(B24,EVALUACION!$B$15:$E$1000,4,FALSE)","v":0}]
[null,"1.11","Obligatorio","Se debe identificar el personal mínimo necesario y priorizar la entrega de servicios críticos y esenciales basados en: el estado de salud de los residentes, sus limitaciones funcionales, la condición de discapacidad y las operaciones esenciales de las instalaciones.\nConforme guía de SENAMA y MINSAL, se recomienda:\nDividir al personal y residentes por sectores. Ejemplo: por pisos, por habitaciones. Designar espacios limitados a cada grupo y funciones específicas a cada uno.\nYa que COVID-19 se contagia por contacto estrecho, usted puede evitar la enfermedad simultánea de residentes y personal, no compartiendo los mismos espacios.","a) Lista de integrantes actualizada del personal con nombre, RUT, teléfono de contacto en caso de urgencia y días/turnos que asiste.\nb) Plan de continuidad de la atención en caso de enfermedad de los cuidadores.\nc) Identificar personal de reemplazo que esté capacitado en EPP y disponible para cubrir las licencias del personal.",null,null,{"$f":"+VLOOKUP(B25,EVALUACION!$B$15:$E$1000,4,FALSE)","v":0}]
[null,"1.12","Obligatorio","Se debe planificar rotaciones e identificar personal para eventual reemplazo de funcionarios frente a casos sospechosos y confirmados de COVID-19 con indicación de aislamiento domiciliario. Este personal de reemplazo debe recibir una capacitación en medidas preventivas y manejo de COVID-19 en personas mayores antes de ingresar a la residencia.\nEl Director Técnico deberá resguardar que el personal de reemplazo cuente con capacitación de medidas preventivas y manejo de Covid-19, en el caso de que el personal no cuente con esta, se deberá asegurar que la reciba.","a) Plan de continuidad de la atención en caso de enfermedad de los cuidadores.\nc) Registros de capacitación y entrenamiento.",null,null,{"$f":"+VLOOKUP(B26,EVALUACION!$B$15:$E$1000,4,FALSE)","v":0}]
[null,"1.13","Obligatorio","Se debe identificar posibles lugares de aislamiento en casos de que haya sospecha de COVID-19 en residentes. En caso de no contar con lugares de aislamiento, se debe habilitar algún espacio que cuente con las condiciones señaladas más adelante. Conforme guía de SENAMA y MINSAL, se recomienda considerar:\na) Considerar la clausura de áreas comunes (comedores, living) para evitar propagación según la disponibilidad de personal. En caso de definirse clausura de las áreas comunes, se deberá promover actividades diarias dentro de sus habitaciones a los residentes. Considerar la transferencia de cama a silla en el caso de las personas en condición de dependencia severa. b) Determinar si existen las condiciones para generar espacios de aislamiento dirigido a:\n1. - Residentes con síntomas respiratorios. Considere baño exclusivo o portátil\n2. - Residentes sin síntomas respiratorios pero en aislamiento preventivo por contacto. Considere baño exclusivo o portátil\n3. - Espacio para cuidados de fin de vida/paliativos. Considere baño y espacio para acompañante.\nEn caso de no disponer de espacio para aislamiento de caso sintomático respiratorio asegúrese de que el residente use adecuadamente mascarilla y aguarde instrucciones de SEREMI de Salud.","a) Plan de contingencias acorde a las especificaciones de la Guía práctica de manejo COVID-19 en Establecimientos de Larga Estadía para Adultos Mayores (ELEAM), abril 2020.\nb) Protocolo ante casos de sospecha COVID -19.\nc) Identificación física de las áreas de aislamiento.",null,null,{"$f":"+VLOOKUP(B27,EVALUACION!$B$15:$E$1000,4,FALSE)","v":0}]
[null,"1.14","Recomendación","Se recomienda la reorganización de turnos incorporando mayor flexibilidad de horarios, horarios diferidos, por ejemplo, para evitar aglomeraciones en el transporte público, al igual que dar la posibilidad de cambios en los sistemas de turnos, con el objetivo de disminuir el riesgo de contagio al estar expuestos al transporte público, como también para proteger la salud mental de los trabajadores.","a) Registro de medidas de control organizativas asociadas a la asignación de turno.\n",null,null,{"$f":"+VLOOKUP(B28,EVALUACION!$B$15:$E$1000,4,FALSE)","v":0}]
[null,"1.15","Obligatorio","La residencia deberá contar con un protocolo que establezca las medidas de control para ingreso de visitas.\nDe acuerdo a las previsiones del Plan Paso a Paso vigente y las resoluciones que se emitan a su respecto, podrán realizarse visitas periódicas de familiares a los residentes de los ELEAM, en las siguientes condiciones:\na) El visitante deberá solicitar permiso temporal de visita a ELEAM en www.c19.cl\nb) El visitante menor de 12 años deberá entrar acompañado de un tutor exclusivo responsable.\nc) Para efectos de trazabilidad, toda visita deberá ser registrada al momento del ingreso al establecimiento, inscribiendo fecha y hora, nombre completo, RUN, correo electrónico, dirección y teléfono de contacto.\nd) Previo al ingreso de las visitas se deberá constatar: temperatura, verificar que no presente ningún signo y/o síntoma sugerente de COVID 19, correcto uso de mascarilla, la que deberá emplearse hasta su egreso; lavado de manos con agua y jabón por 40 segundos o empleo de alcohol gel al 70%. Este control deberá realizarlo preferentemente profesionales o técnicos de salud, o en su defecto, personal del ELEAM debidamente capacitado.\ne) Deberá disponer de un protocolo de “reencuentro seguro” que defina el proceso de visita de inicio a fin, visado por el director técnico. Sin perjuicio de lo anterior la residencia deberá cumplir siempre con:\nf) Disponer de un plan semanal que permita la visita de familiares como máximo dos veces por semana,\ng) El o los días establecidos para las visitas podrán corresponder a cualquier día de la semana, de acuerdo a lo permitido en el Plan Paso a Paso. El horario se establecerá\nde conformidad a los procesos internos del ELEAM, no pudiendo extenderse más allá de 2 horas.\nh) Solo se permitirán 2 personas como visitantes, por cada residente en cada visita. \ni) El número total de visitantes se establecerá de acuerdo a los espacios disponibles para la recepción de los mismos, no pudiendo exceder en un mismo horario al 20 % del número total de residentes.\nj) Para la realización de las visitas se deberá disponer de un sector diferenciado, abierto o semi-abierto.\nSólo para estos efectos, se entenderá como lugar adecuado para las visitas aquel que no tiene techo o aquel que, teniendo techo, cuenta con más del 75% de su perímetro con muros.\nk) Durante la visita se deberá guardar una distancia mínima de dos metros lineales entre mesas o dispositivos dispuestos para la visita.\nl) Las mesas, sillas u otros dispositivos empleados durante las visitas deberán desinfectarse de acuerdo a los protocolos prestablecidos, tanto de manera previa como posterior a las mismas, así como también las zonas de accesos, rutas\ntransitadas, superficies u otros elementos que hayan estado en contacto con los visitantes.\nm) Durante la visita, personal del ELEAM previamente designado deberá supervisar que se mantengan las normas de distancia física entre los residentes y visitantes; que en ningún momento se realice contacto físico ni se entreguen artículos, alimentos o dispositivos de manera directa a los residentes.\nn) Al visitante que no cumpla con las condiciones establecidas se le pedirá el abandono del establecimiento.\n\nSin perjuicio de lo dispuesto anteriormente, podrán realizarse visitas empleando elementos de barrera entre visitantes y residentes, siempre que éstos aseguren que no haya contacto\nentre ambos, bajo las siguientes condiciones:\n- Se considerarán como elementos de barrera los que permitan:\no Separación total entre visitante y residente; por medio de ventanas, ventanales o similares; que solo permitían el contacto visual entre ellos.\no Contacto seguro entre visitante y residente, por medio del uso de cabinas o dispositivos similares que aíslan a las personas, pero permiten el contacto sin posibilidad de transmisión o contagio viral.\n- Las barreras que se empleen estarán sujetas a procesos de limpieza y desinfección entre cada visita.\nEl número de visitantes por ocasión dependerá del medio de separación que se emplee y los procesos de desinfección que deban efectuarse; sin embargo, la frecuencia de visitas\nse mantendrá de acuerdo a lo dispuesto precedentemente.\n","a) Copia de protocolo para ingreso de visitas.\nb) Registro de los canales de comunicación definidos.\nc) Registro de difusión a trabajadores y familiares.",null,null,{"$f":"+VLOOKUP(B29,EVALUACION!$B$15:$E$1000,4,FALSE)","v":0}]
[null,"1.16","Obligatorio","La residencia deberá contar con un protocolo que establezca las medidas frente a la solicitud de egreso de residentes.\nDentro de las situaciones particulares que serán consideradas para la autorización de egresos de residentes de los ELEAM se encuentran:\n● Solicitud de egreso por parte del residente, cuando éste se encontrase en condiciones de manifestar voluntad, y aceptación del egreso por parte de la persona de referencia (apoderado, familiar responsable, tutor legal).\n● Solicitud de egreso por parte de la persona de referencia y voluntad manifiesta del residente, cuando ésta sea posible de obtener.\n● Residentes en cuidados de fin de vida o patología aguda o agudización de sus patologías crónicas que signifiquen un mayor riesgo ante contagio de SARS-CoV2.\n● Negación por parte de una persona mayor con COVID-19 positivo, o de la persona de referencia, a trasladarse a un centro asistencial o a otros dispositivos que se hayan establecido para tales fines, cuando el ELEAM no cuente con las condiciones\npara realizar el aislamiento adecuadamente.\n\nRequisitos asociados:\nPara el ELEAM:\nAnte la solicitud de egreso, el Director Técnico del ELEAM informará a la SEREMI de salud, la identificación del residente que egresa, las razones de egreso , el número de contacto y\nla dirección a donde se dirigirá.\n-La persona referente de la persona mayor, deberá firmar una carta compromiso, la cual tendrá que quedar archivada en los registros del ELEAM.\n-El reingreso durante la emergencia sanitaria será evaluado según las indicaciones vigentes.","a) Copia de protocolo ante solicitud de egreso de residentes de ELEAM.\nb) Registro de los canales de comunicación definidos.\nc) Registro de difusión a trabajadores y familiares.",null,null,{"$f":"+VLOOKUP(B30,EVALUACION!$B$15:$E$1000,4,FALSE)","v":0}]
[null,"1.17","Obligatorio","La residencia deberá contar con un protocolo que establezca las medidas frente a la solicitud para salida de los residentes a realizar caminatas fuera del ELEAM.\nCon el objetivo de que los residentes mantengan su funcionalidad, las personas mayores del ELEAM que estén en condiciones de salud para realizar caminatas al exterior de éste y tales actividades se encuentren autorizadas de acuerdo al Plan “Paso a Paso”, en caso de ser necesario deberán realizarlas acompañados de un cuidador o de un familiar autorizado, por el Director Técnico del establecimiento respectivo. Las condiciones para salidas son las siguientes:\n- Portar identificación\n- Usar mascarilla en todo momento (cubriendo boca y nariz) y portar alcohol gel al 70% para desinfectar sus manos en caso de contacto con superficies u otros elementos.\n- Realizar un recorrido de una distancia máxima de 200 metros a la redonda.\n- Mantener la distancia física de los demás transeúntes u otros residentes y acompañantes durante la caminata.\n- No circular ni ingresar a lugares o establecimientos cerrados.\n- No realizar compras ni ingerir alimentos o bebidas, tampoco ejecutarán ningún otro tipo de gestiones.\n- Podrán detenerse en lugares de esparcimiento público, siempre y cuando éstos se encuentren al aire libre.\n- No concurrir a lugares donde exista aglomeración de personas.\n- La salida se extenderá por dos horas, como máximo. Al reingresar al establecimiento la persona mayor y su acompañante deberán realizar las medidas que a continuación\nse detallan en siguiente orden:\no Lavado de manos con agua y jabón de al menos 40 segundos o usar alcohol gel al 70%.\no Cambiar las ropas más externas tales como abrigos, chaquetas, pantalones y zapatos.\no Retirarse la mascarilla si es desechable y botarla de inmediato en una bolsa cerrada o en un basurero con tapa; si es reutilizable depositarla en un cesto de ropa sucia para su\nposterior lavado.\no Limpiar con solución desinfectante disponible en el ELEAM, artículos utilizados durante la salida.\no Lavado de manos con agua y jabón de al menos 40 segundos.","a) Copia de protocolo para salida de residentes a realizar caminatas fuera del  ELEAM.\nb) Registro de los canales de comunicación definidos.\nc) Registro de difusión a trabajadores y familiares.",null,null,{"$f":"+VLOOKUP(B31,EVALUACION!$B$15:$E$1000,4,FALSE)","v":0}]
[null,"2.- MEDIDAS DE SEGURIDAD DE LA RESIDENCIA",null,null,null,null,null,{"$f":"+VLOOKUP(B32,EVALUACION!$B$15:$E$1000,4,FALSE)","v":0}]
[null,null,null,null,null,null,null,{"$f":"+VLOOKUP(B33,EVALUACION!$B$15:$E$1000,4,FALSE)","v":{"$error":"#N/A"}}]
[null,"2.1","Obligatorio","a) Informe permanentemente a los trabajadores, sobre las recomendaciones para evitar el contagio. Recuerde que deben evitar el contacto físico (saludos de manos o beso en la cara), tanto con usuarios como entre ellos mismos.\nPodrá encontrar una amplia información actualizada en\n- Sitio ACHS: https://coronavirus.achs.cl/\n- Sitio del MINSAL: https://www.minsal.cl/nuevo-coronavirus-2019-ncov/informe-tecnico/","a) Registro gráfico de la medida implementada (infografías, señalización, cartelería, fotografía, otros).\nb) Registro de información sobre medidas básicas para evitar el contagio y propagación de COVID-19.",null,null,{"$f":"+VLOOKUP(B34,EVALUACION!$B$15:$E$1000,4,FALSE)","v":0}]
[null,"2.2","Obligatorio","a) Informe permanentemente a los trabajadores, sobre las recomendaciones para evitar el contagio. Recuerde que debe mantener distancia de a lo menos 1 metro, en la medida de lo posible.\nPodrá encontrar una amplia información actualizada en\n- Sitio ACHS: https://coronavirus.achs.cl/\n- Sitio del MINSAL: https://www.minsal.cl/nuevo-coronavirus-2019-ncov/informe-tecnico/","a) Registro gráfico de la medida implementada (infografías, señalización, cartelería, fotografía, otros).\nb) Registro de información o capacitación sobre medidas básicas para evitar el contagio y propagación de COVID-19.",null,null,{"$f":"+VLOOKUP(B35,EVALUACION!$B$15:$E$1000,4,FALSE)","v":0}]
[null,"2.3","Obligatorio","a) Asegure la ventilación permanente de las instalaciones, por medios naturales y/o artificiales.\nb) Verifique el correcto funcionamiento de los sistemas de inyección y/o extracción de aire y evite la recirculación del mismo.\nc) Considerar especialmente aquellos residentes que comparten habitación o baño, a quienes se sugiere también separar. En caso de que no sea posible dividir las habitaciones, se recomienda habilitar otros espacios que permita separar a las personas mayores resguardando que las camas se encuentren como mínimo a 1 metro de distancia (idealmente 1.5 metros) considerando la distancia que las gotitas viajan al toser).\nd) Implemente un programa de limpieza y desinfección del lugar de trabajo. Para esto utilice como guía el protocolo de \"Limpieza y desinfección de ambientes\" del MINSAL.","a) Registro de evaluación y/o verificación del sistema de ventilación del lugar de trabajo.\nb) Layout de la residencia, identificando puntos criticos de aglomeración y medidas para garantizar distanciamiento mínimo.\nc) Registro del programa de limpieza, sanitización y/o desinfección de instalaciones.\nd) Registro de difusión de normas de higiene a trabajadores.\ne) Registro gráfico de medidas adoptadas.",null,null,{"$f":"+VLOOKUP(B36,EVALUACION!$B$15:$E$1000,4,FALSE)","v":0}]
[null,"2.4","Obligatorio","Se deberá delimitar los objetos, utensilios e insumos, que deberán ser de uso exclusivo y personal de forma estricta.","a) Registro gráfico de medidas adoptadas",null,null,{"$f":"+VLOOKUP(B37,EVALUACION!$B$15:$E$1000,4,FALSE)","v":0}]
[null,"2.5","Obligatorio","Se deberá dividir el uso de baño para cada grupo.","a) Registro gráfico de medidas adoptadas",null,null,{"$f":"+VLOOKUP(B38,EVALUACION!$B$15:$E$1000,4,FALSE)","v":0}]
[null,"2.6","Obligatorio","Se deberá desinfectar permanentemente las superficies y baños de población general de la residencia, realizar estas acciones según las orientaciones emanadas del “Protocolo de Limpieza y desinfección de Ambientes, COVID-19” vigente MINSAL. a) Implemente un programa de limpieza y desinfección de instalaciones.\nb) Genere un instructivo para la limpieza y desinfección de instalaciones.\nc) Informe (comunique, publique, instruya) a los trabajadores, el instructivo de limpieza y desinfección señalado.\nd) Refuerce el programa de lavado y sanitizado de instalaciones.","a) Registro del programa de limpieza y desinfección.\nb) Registro del instructivo para realizar la limpieza y desinfección.\nc) Registros de comunicación (capacitación, infografía, cartelería, otros) del instructivo\nd) Programa de lavado y sanitizado de instalaciones.",null,null,{"$f":"+VLOOKUP(B39,EVALUACION!$B$15:$E$1000,4,FALSE)","v":0}]
[null,"2.7","Obligatorio","a) Realizar las acciones necesarias para mantener la salud de los residentes, tales como: hidratación adecuada, alimentación saludable, cepillado dental, sueño reparador, bajo consumo de sal y azúcar, y actividad física (en lo posible) dentro de la residencia.\nb) Favorecer el adecuado control de las enfermedades crónicas o de base, recordando tomar los medicamentos indicados y/o realizando las medidas recomendadas para la condición.","a) Plan de actividades para gantizar la salud y control de enfermedades crónicas o de base de los residentes.\nB) Registros de acciones ejecutadas por cada residente",null,null,{"$f":"+VLOOKUP(B40,EVALUACION!$B$15:$E$1000,4,FALSE)","v":0}]
[null,"2.8","Obligatorio","Se promoverá el contacto por vías seguras no presenciales, como teléfono y redes sociales, para evitar la carga emocional del aislamiento.","a) Plan de comunicaciones de la residencia",null,null,{"$f":"+VLOOKUP(B41,EVALUACION!$B$15:$E$1000,4,FALSE)","v":0}]
[null,"3. MEDIDAS DE CONTROL DE LOS TRABAJADORES DE LA RESIDENCIA",null,null,null,null,null,{"$f":"+VLOOKUP(B42,EVALUACION!$B$15:$E$1000,4,FALSE)","v":0}]
[null,null,null,null,null,null,null,{"$f":"+VLOOKUP(B43,EVALUACION!$B$15:$E$1000,4,FALSE)","v":{"$error":"#N/A"}}]
[null,"3.1","Obligatorio","Se deberá firmar la correspondiente Declaración Jurada para funcionarios de Establecimientos de Larga Estadía para Adultos Mayores (ELEAM) del Ministerio de Salud.\nPara descargar remítase a:\nwww.C19.cl","a) Registro de declaración juarad para funcionarios de ELEAM",null,null,{"$f":"+VLOOKUP(B44,EVALUACION!$B$15:$E$1000,4,FALSE)","v":0}]
[null,"3.2","Obligatorio","a) Implemente un sistema de control de acceso a utilizar (bloqueo de acceso, barreras, corta filas, otros).\nb) Defina los criterios o aspectos a evaluar en las personas (síntomas, dolencias, malestares, otros.), para impedir su ingreso.\nc) Designe y capacite al personal que realizará la revisión visual del estado general de salud de las personas en el ingreso y control de temperatura.\nc) Determine los Elementos de Protección Personal (EPP), que utilizará el personal que realizará la actividad.\nd) Comunique las restricciones y condiciones de ingreso, mediante infografías (carteles, avisos, paneles, otros), llamando a la comprensión y respeto al cumplimiento de las condiciones.\ne) En caso de presentar fiebre, deberá informar a su jefatura y no tener contacto con las personas mayores u otras personas de la residencia. Posteriormente, debe seguir las indicaciones decretadas por la autoridad sanitaria. El trabajador no debe tener contacto con las personas mayores hasta descartar el contagio por COVID-19.","a) Registro de difusión del protocolo y de las medidas aplicadas.\nb) Nomina del personal asignado y capacitado para realizar la actividad.\nc) Registros fotográficos del proceso implementado.",null,null,{"$f":"+VLOOKUP(B45,EVALUACION!$B$15:$E$1000,4,FALSE)","v":0}]
[null,"3.3","Obligatorio","Se deberá realizar lavado de manos obligatorio al ingreso y con la frecuencia recomendada, cumpliendo con la disposición del Protocolo “Estándares para el control de infecciones en la atención en salud y algunas consideraciones de aislamiento”. a) Promueva y facilte el lavado de manos frecuente con agua y jabón, esta operación debe tener una duración de unos 20 segundos y repetirse tantas veces como sea necesario a lo largo de una jornada laboral, especialmente después de realizar limpieza, manipular residuos, manipular dinero, en el recambio de guantes y antes de consumir alimentos o bebidas.\nb) Informe o capacite a los trabajadores en la técnica correcta del lavado de manos.\nc) Asegure la disponibilidad de agua, jabón y toalla de manos desechable en baños y otros lugares dispuesto para este fin.\nd) Instale señalización (cartelería), con el método correcto del lavado de manos.","a) Registro gráfico de la medida implementada\nb) Registro de capacitación en el lavado de manos\nc) Registro de infografía para el correcto lavado de manos.\nd) Programa de limpieza con reposición de jabón y toalla de manos desechable",null,null,{"$f":"+VLOOKUP(B46,EVALUACION!$B$15:$E$1000,4,FALSE)","v":0}]
[null,"3.4","Obligatorio","Se debe disponer un espacio para el cambio de uniforme al interior de la residencia.","a) Registro fotográfico del área de cambio de ropa",null,null,{"$f":"+VLOOKUP(B47,EVALUACION!$B$15:$E$1000,4,FALSE)","v":0}]
[null,"3.5","Obligatorio","a) Comunique a los trabajadores sobre la instrucción de: Todo personal que ingrese a la residencia deberá cambiar su ropa y zapatos, los que dejará en una bolsa cerrada, para luego poner su uniforme de trabajo.","a) Registro gráfico de la medida implementada (infografías, señalización, cartelería, fotografía, otros).\nb) Registro de información o capacitación.",null,null,{"$f":"+VLOOKUP(B48,EVALUACION!$B$15:$E$1000,4,FALSE)","v":0}]
[null,"3.6","Obligatorio","a) Comunique a los trabajadores sobre la instrucción de: La ropa utilizada durante el cuidado de las personas mayores residentes es de uso exclusivo para el lugar donde se realiza el cuidado, quedando prohibido circular en espacios públicos con ella.","a) Registro gráfico de la medida implementada (infografías, señalización, cartelería, fotografía, otros).\nb) Registro de información o capacitación.",null,null,{"$f":"+VLOOKUP(B49,EVALUACION!$B$15:$E$1000,4,FALSE)","v":0}]
[null,"3.7","Obligatorio","a) Comunique a los trabajadores sobre la instrucción de: El personal no debe portar anillos o pulseras mientras está en jornada de trabajo. Deben ser retirados antes de comenzar la jornada laboral.","a) Registro gráfico de la medida implementada (infografías, señalización, cartelería, fotografía, otros).\nb) Registro de información o capacitación.",null,null,{"$f":"+VLOOKUP(B50,EVALUACION!$B$15:$E$1000,4,FALSE)","v":0}]
[null,"4.- MEDIDAS ANTE LA PRESENCIA DE COVID-19 EN LA RESIDENCIA",null,null,null,null,null,{"$f":"+VLOOKUP(B51,EVALUACION!$B$15:$E$1000,4,FALSE)","v":0}]
[null,null,null,null,null,null,null,{"$f":"+VLOOKUP(B52,EVALUACION!$B$15:$E$1000,4,FALSE)","v":{"$error":"#N/A"}}]
[null,"4.1- Casos sugerentes de COVID-19 en personas mayores",null,null,null,null,null,{"$f":"+VLOOKUP(B53,EVALUACION!$B$15:$E$1000,4,FALSE)","v":0}]
[null,"4.1.1","Obligatorio","La residencia deberá contar con protocolos de actuación ante la presentacia de casos sugerentes de COVID-19 .en personas mayores.\n¿Cómo actuar ante signos y síntomas sugerentes de COVID-19 en personas mayores?\n● Asegurar que la persona mayor con signos y síntomas sugerentes de COVID-19, permanezca físicamente aislada de los otros residentes.\n● Si el personal de la residencia sospecha de la presencia de síntomas de COVID-19, la persona mayor debe ser aislada y solicitar de inmediato evaluación por profesional médico.\n● En caso de no contar con médico y estar conectados a Hospital Digital, el personal de Salud debe buscar orientación por ese medio al FONO: 56227956117.\n● Si no cuenta con ninguna de las condiciones anteriores, el equipo debe buscar orientación telefónica llamando al fono Salud Responde (600 360 7777) o dirigirse al centro de salud más cercano.\n● Si se requiere acudir al centro de salud se debe asegurar que el traslado, en lo posible, sea realizado a través de un medio que involucre el menor contacto con personas, evitando particularmente el contacto con personas mayores o pacientes\ncon enfermedades crónicas. Para el traslado deberá usar los EPP estipulados por la autoridad sanitaria frente al contacto con personas catalogadas como casos sospechoso, probable, confirmado o contacto estrecho. Se debe recordar que la mascarilla es útil solamente hasta que se ensucie o humedezca; si eso ocurre, debe ser cambiada.\n● Sin indicación médica, no se recomienda la administración de medicamentos para el alivio sintomático.","a) Copia de protocolo, procedimiento y/o instructivo que establece la forma de actuar ante casos sugerentes de COVID-19 en personas mayores.\nb) Registro de los canales de comunicación definidos.\nc) Registro de difusión a trabajadores.",null,null,{"$f":"+VLOOKUP(B54,EVALUACION!$B$15:$E$1000,4,FALSE)","v":0}]
[null,"4.2- Condiciones del personal para el traslado de la persona mayor con sospecha de COV-19",null,null,null,null,null,{"$f":"+VLOOKUP(B55,EVALUACION!$B$15:$E$1000,4,FALSE)","v":0}]
[null,"4.2.1","Obligatorio","La residencia deberá contar con protocolos de actuación ante la necesidad de efectuar traslado de personas mayores con sospecha de COVID-19. a) Contar con un flujo o algoritmo de manejo de casos sospechosos en la residencia, que permita decidir a quién se le traslada o no a un centro asistencial.\nb) El director técnico, debe designar previamente quien acompañará a la persona mayor en caso de requerir traslado.\nc) Es importante contar con un kit de apoyo (elementos de protección personal (EPP)) que incluya: mascarilla, pechera desechable manga larga con puño y guantes, el que debe estar dispuesto en cada residencia. Estos insumos deben ser considerados para el uso del residente y del personal que lo traslada.","a) Copia de protocolo, procedimiento y/o instructivo que establece la forma de actuar ante la necesidad de efectuar traslado de casos sospechoso de COVID-19 en personas mayores.\nb) Registro de los canales de comunicación definidos.\nc) Registro de difusión a trabajadores.",null,null,{"$f":"+VLOOKUP(B56,EVALUACION!$B$15:$E$1000,4,FALSE)","v":0}]
[null,"4.3- Medidas para levantamiento de aislamiento de residente conocido que es caso sospechoso COVID-19",null,null,null,null,null,{"$f":"+VLOOKUP(B57,EVALUACION!$B$15:$E$1000,4,FALSE)","v":0}]
[null,"4.3.1","Obligatorio","La residencia deberá contar con protocolos de actuación para levantamiento de aislamiento de residente conocido que es caso sospechoso COVID-19. a) Residentes sospechosos COVID-19 requerirán al menos dos estudios (PCR) negativos para levantar aislamiento. Si este estudio no es posible, se recomienda mantener aislamiento por 14 días luego de la resolución de los síntomas.","a) Copia de protocolo, procedimiento y/o instructivo que establece la forma de actuar para levantamiento de aislamiento de residente conocido que es caso sospechoso COVID-19.\nb) Registro de los canales de comunicación definidos.\nc) Registro de difusión a trabajadores.",null,null,{"$f":"+VLOOKUP(B58,EVALUACION!$B$15:$E$1000,4,FALSE)","v":0}]
[null,"4.4- Medidas en caso que se confirme COVID-19 en la residencia",null,null,null,null,null,{"$f":"+VLOOKUP(B59,EVALUACION!$B$15:$E$1000,4,FALSE)","v":0}]
[null,"4.4.1","Obligatorio","La residencia deberá contar con protocolos de actuación ante casos confirmados de COVID-19 de personas mayores en la residencia.\nLas zonas de aislamiento en una residencia deben ser un espacio que pueda separarse de manera efectiva del resto de las dependencias de la residencia, en algunos casos implicará\nhabilitar nuevas salas u oficinas que puedan contar con las siguientes condiciones:\n● Disponer de señalética visible que indique claramente “aislamiento por COVID-19”, donde se describa claramente las precauciones que deben tenerse y el kit o equipamiento de protección a utilizar.\n● Disponer fuera de la habitación de una mesa o contenedor con todos los EPP necesarios para una atención segura, junto a los dispensadores con soluciones alcohólicas para realizar una adecuada higienización de manos antes de ingresar y salir de la habitación.\n● Puertas en buen estado que cierren completamente.\n● Ventanas en buen estado que puedan abrirse con la finalidad de ventilar una vez realizada la desinfección.\n● Ventilar frecuentemente las habitaciones (tres o cuatro veces al día, al menos durante diez minutos).\n● Baños dispuestos dentro del espacio definido con zona de aislamiento, en caso de no contar ello, debe haber baño portátil dentro de la habitación.\n● Muebles de superficie lavable.\n● Tarro o cubo de basura con tapa y pedal dentro de cada habitación para eliminar los EEP luego de la atención directa.\n\nEn caso de que la persona requiera de hospitalización domiciliaria, se deberá contar además con el siguiente equipamiento:\n● Catre clínico que facilite la atención de las personas sin la necesidad de realizar gran esfuerzo físico.\n● En el caso de que las personas mayores requieran soporte de oxígeno, esto debe ser coordinado con la red de salud, el que proveerá de los implementos y suministros necesarios para el manejo en la residencia, con un monitoreo permanente.\n● En los pasillos de ingreso a las habitaciones debería contarse con dispensadores de alcohol gel anclados a un muro a cierta distancia, o usar dispensadores de mesa y dejarlos en algún lugar próximo antes de ingresar y salir de la habitación.\n● Enfatizar sobre la higiene de manos, el que se ejecutará en lavamanos en estaciones de enfermerías/clínica o en lavamanos dispuestos al interior de zonas de aislamiento.\n● Las personas que cuidan y apoyan a la persona mayor confirmada de COVID - 19 deberán contar con un kit o equipo de protección individual que considere lo indicado por el “Protocolo Referencia para correcto uso de equipo de protección personal en pacientes sospechosos o confirmados de COVID19”. \n● Asegurar la correcta limpieza de superficies y espacios clínicos, zona de estar, baños, etc.\n● Limpieza de unidad de la persona mayor se hace con las asistentes según protocolo y el personal de aseo debe limpiar tanto las superficies como el piso, muro y ventanas, tomando todas las precauciones definidas para tal efecto. Se debe\nasegurar que el personal sea previamente capacitado para tal efecto.\n● El manejo del material desechable debe precisarse en un contenedor etiquetado o identificado según norma.\nEl baño de uso exclusivo para persona con sospecha de COVID- 19 debe:\n● Tener toallas desechables.\n● Ser desinfectado como mínimo 2 veces al día por una persona que utilice antiparras y los siguientes elementos de protección personal desechables: pechera, guantes y mascarilla.","a) Copia de protocolo, procedimiento y/o instructivo que establece la forma de actuar ante casos confirmados de COVID-19 en personas mayores en la residencia.\nb) Registro de los canales de comunicación definidos.\nc) Registro de difusión a trabajadores.",null,null,{"$f":"+VLOOKUP(B60,EVALUACION!$B$15:$E$1000,4,FALSE)","v":0}]
[null,"4.5- Medidas en caso que se confirme COVID-19 y la persona requiera hospitalización",null,null,null,null,null,{"$f":"+VLOOKUP(B61,EVALUACION!$B$15:$E$1000,4,FALSE)","v":0}]
[null,"4.5.1","Obligatorio","La residencia deberá contar con protocolos de actuación ante casos confirmados de COVID-19 y la persona requiera de hospitalización.\n\n● La persona mayor recibirá los cuidados necesarios para el manejo de su condición clínica en el contexto de una hospitalización cerrada.\n● El ELEAM debe continuar las medidas preventivas y de aislamiento en caso de sospecha de COVID-19, descritas en los puntos anteriores de este documento, para evitar la aparición de nuevos casos.\n● Se debe mantener la monitorización de las personas mayores y el personal que tuvieron exposición con el caso confirmado, según lo dispuesto en la estrategia de testeo, trazabilidad y aislamiento.\n● El personal asignado, dentro de la residencia, para vincularse con la familia y/o tutores, deberá informarles oportunamente sobre la situación de la persona mayor, así como también al resto de los residentes. En los casos que todo el personal sea\nenviado a cuarentena por la autoridad sanitaria, esta función deberá ser asignada a personal de reemplazo.","a) Copia de protocolo, procedimiento y/o instructivo que establece la forma de actuar ante casos confirmados de COVID-19 y la persona requiera hospitalización.\nb) Registro de los canales de comunicación definidos.\nc) Registro de difusión a trabajadores.",null,null,{"$f":"+VLOOKUP(B62,EVALUACION!$B$15:$E$1000,4,FALSE)","v":0}]
[null,"4.6- Medidas en la residencia en caso de fallecimiento por COVID-19",null,null,null,null,null,{"$f":"+VLOOKUP(B63,EVALUACION!$B$15:$E$1000,4,FALSE)","v":0}]
[null,"4.6.1","Obligatorio","La residencia deberá contar con protocolos de actuación ante fallecimientos por COVID-19. a) En el caso de que la persona mayor fallece en la residencia y se encontraba en seguimiento por la red de salud, se debe informar en forma inmediata al equipo que entregaba atención en la red.\nb) Será el profesional médico de la residencia quien emita el certificado de defunción, en caso de no contar con él, será la red de salud quien provea este servicio.\nc) Se deberá coordinar con la red sanitaria local la implementación del “Protocolo para el manejo de cadáveres de caso de COVID-19”, quien deberá velar por su cumplimiento dentro de la residencia.\nd) En caso de que la persona mayor no cuente con red de apoyo, se deberá coordinar con la red social municipal, las acciones para la sepultación.\ne) En el caso de que la persona mayor cuente con red de apoyo, se le debe entregar la orientación necesaria para el proceso de sepultación.\nf) Se deberá resguardar el aseo y la limpieza exhaustiva del lugar de fallecimiento de la persona mayor, con las medidas de prevención necesarias para su realización.\ng) En el caso de los ELEAM SENAMA, se deben reforzar los protocolos de: Fallecimiento, contención y autocuidado de los equipos, aseo y limpieza de la Residencia.\nh) Simultáneamente, el equipo sociosanitario debe reforzar las siguientes medidas en el establecimiento:\n• Como medida general, se reitera que, en los Establecimientos de Larga Estadía, es importante revisar y reforzar las indicaciones de los protocolos de: Aseo y Limpieza de la Residencia, Emergencias y Urgencias Médicas, Cuidados Básicos de Enfermería. Estos se encuentran disponibles en la página web de SENAMA: http://www.senama.gob.cl/storage/docs/Libro_Estandares_de_Calidad_ELEAM_2019_FI NAL.pdf","a) Copia de protocolo, procedimiento y/o instructivo que establece la forma de actuar ante fallecimiento por COVID-19.\nb) Registro de los canales de comunicación definidos.\nc) Registro de difusión a trabajadores.",null,null,{"$f":"+VLOOKUP(B64,EVALUACION!$B$15:$E$1000,4,FALSE)","v":0}]
[null,"4.7- Medidas de control de ingreso de terceras personas al ELEAM (abastecimiento. médicos. etc)",null,null,null,null,null,{"$f":"+VLOOKUP(B65,EVALUACION!$B$15:$E$1000,4,FALSE)","v":0}]
[null,"4.7.1","Obligatorio","La residencia deberá contar con protocolos de ingreso de terceras personas al ELEAM (abastecimiento, médicos, etc). Aun cuando la residencia esté cerrada, es posible que personal de abastecimiento, médicos particulares\ny/o servicios de atención domiciliaria soliciten ingresar. En esto casos la guía práctica de manejo de COVID-19 en ELEAM sugiere: * Uso de alcohol gel a la entrada.\n* Todos los proveedores y terceras personas deberán presentar su declaración jurada de salud y ser fiscalizados a su ingreso al ELEAM. Acceso a formulario de declaración jurada en el Link: www.c19.cl\n* Realizar control térmico, preguntas de síntomas respiratorios y contactos estrechos con casos confirmados COVID-19. Si alguna persona del personal presenta temperatura mayor a 37.8 grados, tos o dificultad para respirar (disnea) o estuvo en contacto estrecho con caso confirmado de COVID-19, se deberá rechazar el ingreso al establecimiento.\n* En caso de ingresar con caja, esta se deja en la entrada y se rocía con dilución de cloro o productos autorizados.\n* Se guía a zona de cambio de ropa, sin usar ascensores, sin tocar superficies y/o residentes.\n* Realiza higiene de manos dirige .\n* Se viste con pechera , mascarillas y guantes.\n* Realiza la función encomendada en el menor tiempo posible.\nAl finalizar atención:\n* Si es profesional de salud, se retira EPP en el acceso de la habitación y se dirige a la salida.\n* Si no realiza atención de residentes, se retira EPP antes de salir de la residencia\n* Alcohol gel a la salida.","a) Copia de protocolo, procedimiento y/o instructivo de ingreso de terceras personas al ELEAM (abastecimiento, médicos, etc).\nb) Registro de los canales de comunicación definidos.\nc) Registro de difusión a trabajadores.",null,null,{"$f":"+VLOOKUP(B66,EVALUACION!$B$15:$E$1000,4,FALSE)","v":0}]
[null,"4.8- Protocolo de visita de familiares a residentes en contexto de fin de vida",null,null,null,null,null,{"$f":"+VLOOKUP(B67,EVALUACION!$B$15:$E$1000,4,FALSE)","v":0}]
[null,"4.8.1","Obligatorio","Respecto de visitas de familiares a residentes en contexto de fin de vida, cada organización deberá desarrollar y publicar un\nprotocolo local de “Reencuentro Seguro”, que considere las capacidades particulares de cada institución, respecto a las acciones a realizar en el acompañamiento del residente, tanto por parte del personal de atención socio sanitaria, como por el o los familiares que sean autorizados a ingresar.","a) Copia de protocolo \"Reencuentro Seguro\".\nb) Registro de los canales de comunicación definidos.\nc) Registro de difusión a trabajadores y familiares.",null,null,{"$f":"+VLOOKUP(B68,EVALUACION!$B$15:$E$1000,4,FALSE)","v":0}]
[null,"5. ELEMENTOS DE PROTECCIÓN PERSONAL (EPP)",null,null,null,null,null,{"$f":"+VLOOKUP(B69,EVALUACION!$B$15:$E$1000,4,FALSE)","v":0}]
[null,null,null,null,null,null,null,{"$f":"+VLOOKUP(B70,EVALUACION!$B$15:$E$1000,4,FALSE)","v":{"$error":"#N/A"}}]
[null,"5.1","Obligatorio","Se debe SEÑALIZAR el uso obligatorio de elementos de protección personal (EPP), según tarea realizada, los peligros presentes, las sustancias químicas utilizadas, las condiciones ambientales y cualquier otra condición de peligro que pueda poner en riesgo su salud y seguridad.","• Registro grafico de la señalización indicada.",null,null,{"$f":"+VLOOKUP(B71,EVALUACION!$B$15:$E$1000,4,FALSE)","v":0}]
[null,"5.2","Obligatorio","Se debe disponer y entregar de los siguientes elementos de protección:\n- Mascarilla quirúgica.\n- Guantes desechables\n-Pechera desechable.\n-Escudo facial.","• Registro de entrega de elementos de protección personal.",null,null,{"$f":"+VLOOKUP(B72,EVALUACION!$B$15:$E$1000,4,FALSE)","v":0}]
[null,"5.3","Obligatorio","En el caso de que el centro de trabajo cuente con ascensores, se debe indicar a los trabajadores la OBLIGACIÓN de utilizar mascarilla durante el uso.\nEsta obligatoriedad es independiente del número de ocupantes del ascensor.","• Instructivo y registros de difusión a todos los trabajadores",null,null,{"$f":"+VLOOKUP(B73,EVALUACION!$B$15:$E$1000,4,FALSE)","v":0}]
[null,"5.4","Obligación","Se deberá considerar tomar precauciones adicionales para prevenir contagios de contacto y gotitas durante la atención de residentes sospechosos o confirmados de COVID-19, lo que considera entre otros aspectos:\n• Uso de mascarilla tipo quirúrgico, más protección ocular.\n• Antiparras o escudo facial transparente capaz de cubrir la totalidad del rostro (desde los ojos hasta bajo el mentón).\n• Delantal de manga larga impermeable y guantes. Ambos desechables.\n• Después de la atención del residente se deberá quitar y desechar todos los EPP utilizados, higienizar adecuadamente aquellos que sean reutilizables y realizar higiene de las manos y superficies.","• Registro de entrega de elementos de protección personal.",null,null,{"$f":"+VLOOKUP(B74,EVALUACION!$B$15:$E$1000,4,FALSE)","v":0}]
[null,"NO APLICA","NO APLICA","NO APLICA","NO APLICA","NO APLICA","NO APLICA","NO APLICA"]

{"sheet":"BASE_EVAL","index":5,"n_rows":71,"n_cols":5,"rows_kept":71,"cut":false,"hidden":false,"merged":[[2,1,5,7],[0,1,1,7]]}
[null,"LISTA DE VERIFICACIÓN - SERIE COVID-19"]
[]
[null,"MEDIDAS PREVENTIVAS EN ESTABLECIMIENTOS DE ATENCIÓN DE SALUD\nFRENTE AL COVID-19"]
[]
[]
[]
[]
[null,"N°","TIPO","PREGUNTA DE EVALUACIÓN (MEDIDA SEÑALADA POR LA AUTORIDAD)","EVALUACIÓN"]
[]
[null,"1.- MEDIDAS DE GESTIÓN Y ORGANIZACIÓN QUE DEBEN SER ADOPATADAS POR LA DIRECCIÓN TÉCNICA"]
[]
[null,"1.1","Obligatorio","¿Se ha designado a un profesional responsable de coordinar la planificación de medidas de prevención para COVID-19?"]
[null,"1.2","Obligatorio","¿Se cuenta con un plan de de contingencias acorde a las especificaciones establecidas en la Guía práctica de manejo COVID-19 en Establecimientos de Larga Estadía para Adultos Mayores (ELEAM), abril 2020?"]
[null,"1.3","Obligatorio","¿Se cumple con establecer la máxima coordinación con los establecimientos de salud locales, a efectos de asegurar la atención de los residentes por parte del equipo de salud, según corresponda?"]
[null,"1.4","Obligatorio","¿Se cumple con mantener el número de contacto de los miembros del equipo de salud locales?"]
[null,"1.5","Obligatorio","¿Se cumple con coordinar con los servicios de atención primaria para promover que la vacunación contra la influenza se realice dentro del establecimiento?."]
[null,"1.6","Obligatorio","¿Se ha definido una persona responsable de comunicación con el personal, residentes y familiares, respecto al estatus e impacto del COVID-19 en el establecimiento?"]
[null,"1.7","Obligatorio","¿Se cumple con informar con señalética y otros métodos de comunicación al personal, miembros de la familia,visitantes y otras personas que ingresan a las instalaciones, sobre el estado de COVID-19 en el establecimiento y políticas de prevención?."]
[null,"1.8","Obligatorio","¿Se cumple con revisar constantemente los suministros de la residencia?"]
[null,"1.9","Obligatorio","¿Se cumple con asegurar un buen stock de los medicamentos que requieran las personas mayores y prever que no se quiebre ese stock durante al menos 30 días?."]
[null,"1.10","Obligatorio","¿Se cumplen las condiciones sanitarias  para  programar el ingreso de nuevos residentes al ELEAM?"]
[null,"1.11","Obligatorio","¿Se ha identificado el personal mínimo necesario y priorizado la entrega de servicios críticos?"]
[null,"1.12","Obligatorio","¿Se cumple con planificar rotaciones e identificar personal para eventual reemplazo de funcionarios frente a casos sospechosos y confirmados de COVID-19 con indicación de aislamiento domiciliario?"]
[null,"1.13","Obligatorio","¿Se ha identificado posibles lugares de aislamiento en casos de que haya sospecha de COVID-19 en residentes?"]
[null,"1.14","Recomendación","¿Se ha considerado la reorganización de turnos incorporando mayor flexibilidad de horarios, horarios diferidos, por ejemplo, para evitar aglomeraciones en el transporte público, al igual que dar la posibilidad de cambios en los sistemas de turnos, con el objetivo de disminuir el riesgo de contagio al estar expuestos al transporte público, como también para proteger la salud mental de los trabajadores?"]
[null,"1.15","Obligatorio","¿La residencia cuenta con protocolo que establezca las medidas de control respecto de las visitas?"]
[null,"1.16","Obligatorio","¿Se cuenta con protocolo que establezca las medidas frente a la solicitud de egreso de residentes de ELEAM?"]
[null,"1.17","Obligatorio","¿Se cuenta con protocolo que establezca las medidas para las salidas de los residentes a realizar caminatas fuera del ELEAM?"]
[null,"2.- MEDIDAS DE SEGURIDAD DE LA RESIDENCIA"]
[]
[null,"2.1","Obligatorio","¿Se cumple con evitar el contacto físico entre personas: no saludar con besos, abrazos o darse la mano, como cualquier otro tipo de contacto físico?. "]
[null,"2.2","Obligatorio","¿Se cumple con mantener distancia de a lo menos 1 metro, en la medida de lo posible?."]
[null,"2.3","Obligatorio","¿Se cumple con evitar lugares cerrados y sin ventilación?"]
[null,"2.4","Obligatorio","¿Se delimitan los objetos, utensilios e insumos, que deberán ser de uso exclusivo y personal de forma estricta?."]
[null,"2.5","Obligatorio","¿Se divide el uso de baño para cada grupo?"]
[null,"2.6","Obligatorio","¿Se cumple con desinfectar permanentemente las superficies y baños de población general de la residencia, realizar estas acciones según las orientaciones emanadas del “Protocolo de Limpieza y desinfección de Ambientes, COVID-19” vigente MINSAL?"]
[null,"2.7","Obligatorio","¿Se cumple con implementar un plan de actividades para gantizar la salud y control de enfermedades crónicas o de base de los residentes?."]
[null,"2.8","Obligatorio","¿Se cumple con promover el contacto por vías seguras no presenciales, como teléfono y redes sociales, para evitar la carga emocional del aislamiento?"]
[null,"3. MEDIDAS DE CONTROL DE LOS TRABAJADORES DE LA RESIDENCIA"]
[]
[null,"3.1","Obligatorio","¿Se cumple con firmar la correspondiente Declaración Jurada para funcionarios de Establecimientos de Larga Estadía para Adultos Mayores (ELEAM) del Ministerio de Salud?"]
[null,"3.2","Obligatorio","¿Se cumple con realizar control de su temperatura al ingreso del turno? "]
[null,"3.3","Obligatorio","¿Se cumple con realizar lavado de manos obligatorio al ingreso y con la frecuencia recomendada, cumpliendo con la disposición del Protocolo “Estándares para el control de infecciones en la atención en salud y algunas consideraciones de aislamiento”?"]
[null,"3.4","Obligatorio","¿Se cumple con disponer de un espacio para el cambio de uniforme al interior de la residencia?"]
[null,"3.5","Obligatorio","¿Se cumple que todo personal que ingrese a la residencia deberá cambiar su ropa y zapatos, los que dejará en una bolsa cerrada, para luego poner su uniforme de trabajo?"]
[null,"3.6","Obligatorio","¿Se cumple que la instrucción: La ropa utilizada durante el cuidado de las personas mayores residentes es de uso exclusivo para el lugar donde se realiza el cuidado, quedando prohibido circular en espacios públicos con ella?"]
[null,"3.7","Obligatorio","¿Se cumple instrucción: No portar anillos o pulseras mientras está en jornada de trabajo. Deben ser retirados antes de comenzar la jornada laboral?"]
[null,"4.- MEDIDAS ANTE LA PRESENCIA DE COVID-19 EN LA RESIDENCIA"]
[]
[null,"4.1- Casos sugerentes de COVID-19 en personas mayores"]
[null,"4.1.1","Obligatorio","¿La residencia cuenta con protocolos de actuación ante la presentacia de casos sugerentes de COVID-19 en personas mayores?"]
[null,"4.2- Condiciones del personal para el traslado de la persona mayor con sospecha de COV-19"]
[null,"4.2.1","Obligatorio","¿La residencia cuenta con protocolos de actuación ante la necesidad de efectuar traslado de personas mayores con sospecha de COVID-19?"]
[null,"4.3- Medidas para levantamiento de aislamiento de residente conocido que es caso sospechoso COVID-19"]
[null,"4.3.1","Obligatorio","¿La residencia cuenta con protocolos de actuación para levantamiento de aislamiento de residente conocido que es caso sospechoso COVID-19?"]
[null,"4.4- Medidas en caso que se confirme COVID-19 en la residencia"]
[null,"4.4.1","Obligatorio","¿La residencia cuenta con protocolos de actuación ante casos confirmados de COVID-19 de personas mayores en la residencia?"]
[null,"4.5- Medidas en caso que se confirme COVID-19 y la persona requiera hospitalización"]
[null,"4.5.1","Obligatorio","¿La residencia cuenta con protocolos de actuación ante casos confirmados de COVID-19 y la persona requiera de hospitalización?"]
[null,"4.6- Medidas en la residencia en caso de fallecimiento por COVID-19"]
[null,"4.6.1","Obligatorio","¿La residencia cuenta con protocolos de actuación ante fallecimientos por COVID-19?"]
[null,"4.7- Medidas de control de ingreso de terceras personas al ELEAM (abastecimiento. médicos. etc)"]
[null,"4.7.1","Obligatorio","¿La residencia cuenta con protocolos de ingreso de terceras personas al ELEAM (abastecimiento, médicos, etc)?"]
[null,"4.8- Protocolo de visita de familiares a residentes en contexto de fin de vida"]
[null,"4.8.1","Obligatorio","¿La residencia cuenta con protocolos de \"Reencuentro Seguro\" para visita de familiares a residentes en contexto de fin de vida?"]
[null,"5. ELEMENTOS DE PROTECCIÓN PERSONAL (EPP)"]
[]
[null,"5.1","Obligatorio","¿Se encuentra SEÑALIZADO según corresponda el uso de protección respiratoria, guantes, mascara facial u otros elementos de protección personal según las tareas realizadas por los trabajadores?"]
[null,"5.2","Obligatorio","¿Se cumple con PROPORCIONAR MASCARILLA que cubran su nariz y boca, a todos los trabajadores, exigiendo su uso en las condiciones o lugares que corresponda?"]
[null,"5.3","Obligatorio","En el caso de que el centro de trabajo cuente con ascensores ¿Se cumple con la OBLIGACIÓN de uso de mascarilla durante el uso?."]
[null,"5.4","Obligación","¿La residencia cumple proporcionar los siguintes elementos de protección para atención de residentes sospechosos o confirmados de COVID-19?"]